bitfinex/quotes_SOLUSD_20220228
["timestamp","ask_amount","ask_price","bid_price","bid_amount"]
[1646030150963,2.74678921,86.425,86.333,6.0]
[1646030151162,23.65153659,86.423,86.333,6.0]
[1646030151361,7.37751194,86.422,86.333,6.0]
[1646030151565,10.12430115,86.422,86.333,6.0]
[1646030151762,2.74678921,86.421,86.333,6.0]
[1646030151962,6.0,86.42,86.333,6.0]
[1646030152363,2.74678921,86.419,86.333,6.0]
[1646030152562,6.0,86.418,86.333,6.0]
[1646030152965,8.74678921,86.418,86.333,6.0]
[1646030154563,1.79057291,86.419,86.333,6.0]
[1646030155167,2.74678921,86.427,86.335,3.11239898]
[1646030155365,47.3454,86.429,86.337,115.3]
[1646030155566,47.3454,86.429,86.341,115.3]
[1646030155765,47.3454,86.429,86.343,115.3]
[1646030155963,47.3454,86.429,86.345,115.3]
[1646030156164,47.3454,86.429,86.347,115.3]
[1646030156365,47.3454,86.429,86.348,8.90065475]
[1646030156764,1.69762772,86.428,86.348,6.0]
[1646030156965,1.69762772,86.428,86.334,6.0]
[1646030158388,8.74678921,86.427,86.334,6.0]
[1646030158786,2.74678921,86.426,86.334,6.0]
[1646030158989,6.0,86.425,86.334,6.0]
[1646030159488,2.74678921,86.424,86.334,6.0]
[1646030159888,4.31128761,86.424,86.335,115.3]
[1646030160187,2.74678921,86.424,86.338,2.97034704]
[1646030160387,47.3454,86.429,86.34,115.3]
[1646030160690,47.3454,86.429,86.342,115.3]
[1646030160986,47.3454,86.429,86.343,6.0]
[1646030161186,49.05388091,86.428,86.343,6.0]
[1646030161388,1.85395394,86.427,86.339,6.0]
[1646030161887,4.60074315,86.427,86.339,6.0]
[1646030162087,2.74678921,86.426,86.334,6.0]
[1646030163088,2.74678921,86.426,86.335,115.3]
[1646030163290,2.74678921,86.426,86.337,115.3]
[1646030163488,2.74678921,86.426,86.338,6.0]
[1646030163690,2.74678921,86.426,86.336,6.0]
[1646030164089,1.85395394,86.427,86.335,115.3]
[1646030164290,1.85395394,86.427,86.337,115.3]
[1646030164490,1.85395394,86.427,86.338,6.0]
[1646030165091,47.3454,86.429,86.335,115.3]
[1646030165391,0.58129909,86.433,86.333,23.2348]
[1646030165392,0.58129909,86.433,86.342,2.58597236]
[1646030165592,0.58129909,86.433,86.345,2.99134186]
[1646030165793,0.58129909,86.433,86.347,115.3]
[1646030166090,0.58129909,86.433,86.35,2.54495145]
[1646030166290,0.58129909,86.433,86.353,2.68100898]
[1646030166491,0.58129909,86.433,86.354,6.0]
[1646030167090,0.58129909,86.433,86.352,6.0]
[1646030167692,2.74678921,86.432,86.352,6.0]
[1646030167892,12.53668713,86.431,86.348,6.0]
[1646030168093,1.67707328,86.43,86.348,6.0]
[1646030168290,4.42386249,86.43,86.348,6.0]
[1646030168495,2.74678921,86.429,86.348,6.0]
[1646030169998,6.0,86.428,86.348,6.0]
[1646030170196,6.0,86.428,86.333,6.0]
[1646030170393,1.69749255,86.426,86.333,6.0]
[1646030170594,6.0,86.425,86.333,6.0]
[1646030170795,1.87294994,86.419,86.333,6.0]
[1646030170996,6.0,86.418,86.333,6.0]
[1646030172595,1.87294994,86.419,86.333,6.0]
[1646030173199,1.87294994,86.419,86.333,8.42886492]
[1646030173500,47.1532,86.427,86.333,8.42886492]
[1646030173798,47.1532,86.427,86.334,2.74678921]
[1646030173999,1.42752057,86.448,86.336,165.3]
[1646030174202,2.74678921,86.46,86.341,69.29]
[1646030174407,4.63,86.478,86.344,120.71]
[1646030174601,1.37763287,86.509,86.347,69.29]
[1646030174800,1.65374752,86.519,86.381,187.70186964]
[1646030174999,59.80351682,86.508,86.383,115.3]
[1646030175201,1.55216142,86.507,86.386,2.7734335]
[1646030175400,1.55216142,86.507,86.39,13.91]
[1646030175602,1.55216142,86.507,86.392,2.38472412]
[1646030175800,1.55216142,86.507,86.394,115.3]
[1646030176003,1.55216142,86.507,86.401,115.3]
[1646030176201,59.80351682,86.508,86.401,115.3]
[1646030176202,59.80351682,86.508,86.405,184.59]
[1646030176401,1.37948888,86.529,86.407,115.3]
[1646030176601,13.91,86.54,86.411,115.3]
[1646030176800,78.2114,86.569,86.415,184.59]
[1646030176801,19.4763449,86.552,86.415,184.59]
[1646030177002,1.87353603,86.551,86.431,115.3]
[1646030177202,1.87353603,86.551,86.434,2.30899352]
[1646030177402,59.48228977,86.55,86.435,34.46159451]
[1646030177603,1.60069924,86.549,86.435,34.46159451]
[1646030177801,4.624,86.548,86.435,34.46159451]
[1646030178000,21.08234633,86.548,86.435,34.46159451]
[1646030178203,29.38508203,86.547,86.435,34.46159451]
[1646030178401,1.69949629,86.546,86.435,34.46159451]
[1646030178606,0.97740749,86.544,86.435,34.46159451]
[1646030178801,13.91,86.54,86.437,2.93350734]
[1646030179104,2.74678921,86.546,86.439,115.3]
[1646030179301,2.74678921,86.562,86.442,3.07192646]
[1646030179503,4.624,86.568,86.445,2.74251006]
[1646030179701,1.64616381,86.549,86.446,6.0]
[1646030179901,4.39295302,86.549,86.446,6.0]
[1646030180102,22.83218224,86.548,86.446,6.0]
[1646030180302,1.7122214,86.547,86.437,6.0]
[1646030180501,4.45901061,86.547,86.437,6.0]
[1646030180903,2.74678921,86.546,86.437,6.0]
[1646030181102,1.76714846,86.545,86.437,6.0]
[1646030181503,24.40262286,86.544,86.437,6.0]
[1646030181701,13.91,86.54,86.436,6.0]
[1646030181901,7.67980638,86.539,86.436,6.0]
[1646030182304,20.08539303,86.538,86.436,6.0]
[1646030182505,59.64355556,86.536,86.436,6.0]
[1646030182703,7.45249496,86.535,86.436,6.0]
[1646030183004,4.19928417,86.535,86.437,2.74678921]
[1646030183203,4.19928417,86.535,86.438,6.0]
[1646030183403,2.74678921,86.534,86.438,6.0]
[1646030183806,2.74678921,86.534,86.437,124.03549122]
[1646030184005,2.74678921,86.534,86.438,2.35761569]
[1646030184202,2.74678921,86.534,86.439,6.0]
[1646030185903,115.3,86.532,86.439,6.0]
[1646030186103,7.6855735,86.531,86.436,6.0]
[1646030186303,2.74678921,86.531,86.436,8.98645446]
[1646030186506,2.74678921,86.531,86.44,2.74678921]
[1646030186709,59.64355556,86.536,86.442,115.3]
[1646030186903,2.74678921,86.547,86.444,115.3]
[1646030187104,2.74678921,86.547,86.446,115.3]
[1646030187304,2.74678921,86.547,86.447,2.70360818]
[1646030187507,2.74678921,86.547,86.449,115.3]
[1646030187707,2.74678921,86.547,86.451,115.3]
[1646030187906,2.74678921,86.547,86.453,115.3]
[1646030188104,2.74678921,86.547,86.455,115.3]
[1646030188305,2.74678921,86.561,86.458,2.87040704]
[1646030188507,2.74678921,86.561,86.456,10.624]
[1646030188508,2.74678921,86.561,86.461,3.08965785]
[1646030188705,102.9726,86.569,86.464,2.26412011]
[1646030188908,2.74678921,86.571,86.466,115.3]
[1646030189108,2.74678921,86.581,86.475,184.59]
[1646030189306,2.74678921,86.591,86.477,184.59]
[1646030189508,2.74678921,86.591,86.491,115.3]
[1646030189707,2.74678921,86.633,86.493,115.3]
[1646030189906,2.74678921,86.633,86.495,115.3]
[1646030190107,43.49490235,86.632,86.51,13.91]
[1646030190305,43.49490235,86.632,86.511,58.79582966]
[1646030190505,43.49490235,86.632,86.512,2.25877224]
[1646030190704,43.49490235,86.632,86.513,10.62]
[1646030190909,46.8215,86.651,86.514,115.3]
[1646030191108,21.67426445,86.647,86.516,115.3]
[1646030191306,21.67426445,86.647,86.531,115.3]
[1646030191508,43.50006223,86.664,86.533,115.3]
[1646030191709,23.4331,86.664,86.551,115.3]
[1646030191906,55.13965396,86.663,86.552,32.81928174]
[1646030192109,55.13965396,86.663,86.553,2.38866591]
[1646030192310,2.74678921,86.662,86.554,6.0]
[1646030192511,2.74678921,86.662,86.555,4.618]
[1646030192709,52.39286475,86.663,86.56,13.91]
[1646030192907,52.39286475,86.663,86.561,8.93091842]
[1646030193510,52.39286475,86.663,86.562,2.74678921]
[1646030193709,52.39286475,86.663,86.563,6.0]
[1646030194715,1.75974616,86.662,86.563,6.0]
[1646030194910,115.3,86.659,86.561,6.0]
[1646030195109,1.8599528,86.656,86.553,6.0]
[1646030195410,6.0,86.655,86.553,6.0]
[1646030195809,10.38168483,86.655,86.553,6.0]
[1646030196208,2.74678921,86.654,86.553,8.91432018]
[1646030196408,7.63489562,86.655,86.553,8.91432018]
[1646030196409,1.63489562,86.655,86.553,8.91432018]
[1646030196609,1.87267868,86.662,86.553,8.91432018]
[1646030196812,1.87267868,86.662,86.554,7.36478921]
[1646030197012,1.87267868,86.662,86.555,6.0]
[1646030197210,1.87267868,86.662,86.555,8.74678921]
[1646030197610,1.87267868,86.662,86.556,2.74678921]
[1646030197810,1.87267868,86.662,86.557,6.0]
[1646030198011,1.55791465,86.671,86.557,6.0]
[1646030198213,1.55791465,86.671,86.558,29.89510656]
[1646030198412,1.73825242,86.687,86.56,13.91]
[1646030198612,1.73825242,86.687,86.561,119.917]
[1646030198812,2.74678921,86.691,86.563,115.3]
[1646030199011,2.74678921,86.691,86.564,125.917]
[1646030199213,58.07747814,86.689,86.565,11.18214748]
[1646030199413,1.77206664,86.688,86.567,115.3]
[1646030199613,117.07206664,86.688,86.568,8.68449355]
[1646030199811,115.3,86.686,86.568,2.68449355]
[1646030200013,1.47948487,86.685,86.569,6.0]
[1646030200213,119.917,86.684,86.569,6.0]
[1646030200413,115.3,86.679,86.569,6.0]
[1646030200613,115.3,86.677,86.566,6.0]
[1646030200812,115.3,86.675,86.566,6.0]
[1646030201013,115.3,86.669,86.566,6.0]
[1646030201213,115.3,86.667,86.537,2.54152049]
[1646030201418,115.3,86.665,86.523,2.9108373]
[1646030201613,115.3,86.663,86.521,6.2271]
[1646030201813,115.3,86.661,86.512,24.7765]
[1646030202016,115.3,86.649,86.513,3.10521244]
[1646030202214,115.3,86.647,86.515,115.3]
[1646030202413,115.3,86.645,86.516,8.70489892]
[1646030202613,13.91,86.63,86.517,115.3]
[1646030202815,58.89450158,86.629,86.518,9.06248326]
[1646030203019,61.64129079,86.629,86.518,9.06248326]
[1646030203316,61.64129079,86.629,86.52,13.91]
[1646030203515,4.43750345,86.628,86.521,10.62]
[1646030203716,2.74678921,86.628,86.522,115.3]
[1646030203915,58.89450158,86.629,86.524,115.3]
[1646030204218,58.89450158,86.629,86.527,5.57429615]
[1646030204418,58.89450158,86.629,86.528,10.62]
[1646030204619,58.89450158,86.629,86.528,6.0]
[1646030204816,2.74678921,86.628,86.53,2.52826434]
[1646030205016,58.89450158,86.629,86.533,2.42023276]
[1646030205516,58.89450158,86.629,86.536,2.3482503]
[1646030205716,58.89450158,86.629,86.537,121.3]
[1646030205916,58.89450158,86.629,86.538,2.60955295]
[1646030206116,58.89450158,86.629,86.539,6.0]
[1646030206416,58.89450158,86.629,86.541,2.31998899]
[1646030206616,58.89450158,86.629,86.542,6.0]
[1646030207117,58.89450158,86.629,86.543,118.04678921]
[1646030207321,58.89450158,86.629,86.544,8.52827309]
[1646030207617,1.66823146,86.628,86.544,8.74678921]
[1646030207818,4.41502067,86.628,86.544,6.0]
[1646030208017,4.41502067,86.628,86.541,6.0]
[1646030208018,2.74678921,86.627,86.541,6.0]
[1646030208620,2.74678921,86.627,86.542,2.74678921]
[1646030208818,2.74678921,86.627,86.543,6.0]
[1646030209118,58.89450158,86.629,86.544,115.3]
[1646030209322,58.89450158,86.629,86.547,2.58301425]
[1646030209520,2.74678921,86.642,86.548,6.0]
[1646030209720,2.74678921,86.652,86.549,115.3]
[1646030209922,2.74678921,86.652,86.552,3.00431165]
[1646030210119,47.8503,86.664,86.554,2.79402308]
[1646030210321,1.46315016,86.658,86.557,2.345906]
[1646030210520,49.72964016,86.657,86.559,5.18344941]
[1646030210721,1.48984581,86.656,86.56,6.0]
[1646030211322,1.48984581,86.656,86.561,2.74678921]
[1646030211523,1.48984581,86.656,86.562,6.0]
[1646030211724,1.48984581,86.656,86.56,6.0]
[1646030212527,116.78984581,86.656,86.56,6.0]
[1646030212723,1.66268152,86.655,86.56,6.0]
[1646030212925,4.40947073,86.655,86.56,6.0]
[1646030214942,1.66268152,86.655,86.561,2.74678921]
[1646030215144,1.66268152,86.655,86.562,6.0]
[1646030215542,1.58490976,86.656,86.562,6.0]
[1646030215741,1.58490976,86.656,86.56,6.0]
[1646030215941,1.58490976,86.656,86.563,2.74678921]
[1646030216142,1.58490976,86.656,86.564,6.0]
[1646030216344,49.72964016,86.657,86.565,115.3]
[1646030216545,49.72964016,86.657,86.567,115.3]
[1646030216745,49.72964016,86.657,86.568,8.63465185]
[1646030217146,49.72964016,86.657,86.568,11.38144106]
[1646030217348,2.74678921,86.669,86.571,115.3]
[1646030217547,2.74678921,86.692,86.581,115.3]
[1646030217749,2.74678921,86.692,86.584,2.93257759]
[1646030217950,2.74678921,86.692,86.586,115.3]
[1646030218148,2.74678921,86.692,86.588,115.3]
[1646030218349,58.16384877,86.691,86.59,115.3]
[1646030218550,58.16384877,86.691,86.592,115.3]
[1646030218750,2.74678921,86.692,86.596,115.3]
[1646030218951,2.74678921,86.714,86.611,115.3]
[1646030219152,46.9468,86.734,86.614,2.76473521]
[1646030219352,46.9468,86.734,86.616,115.3]
[1646030219554,46.9468,86.734,86.631,115.3]
[1646030219752,44.53257217,86.75,86.635,184.59]
[1646030219953,44.53257217,86.75,86.641,115.3]
[1646030220154,44.53257217,86.75,86.64,13.91]
[1646030220155,44.53257217,86.75,86.644,2.66955269]
[1646030220354,1.59633876,86.749,86.645,6.0]
[1646030220552,1.59633876,86.749,86.644,2.66955269]
[1646030220753,6.21033876,86.749,86.645,6.0]
[1646030220957,1.79611495,86.747,86.645,6.0]
[1646030221153,53.67364907,86.714,86.645,6.0]
[1646030221353,53.67364907,86.714,86.634,6.0]
[1646030221756,53.67364907,86.714,86.635,2.74678921]
[1646030221956,53.67364907,86.714,86.636,6.0]
[1646030222356,1.85797858,86.739,86.637,118.04678921]
[1646030222654,1.85797858,86.739,86.638,8.6784642]
[1646030222857,1.85797858,86.739,86.638,11.42525341]
[1646030223255,51.02364621,86.738,86.639,2.74678921]
[1646030223455,1.76585818,86.736,86.64,6.0]
[1646030223757,2.74678921,86.715,86.64,6.0]
[1646030223954,44.25332102,86.714,86.652,0.8672]
[1646030224154,1.69116706,86.713,86.652,0.8672]
[1646030224355,4.43795627,86.713,86.652,0.8672]
[1646030224557,2.74678921,86.712,86.652,0.8672]
[1646030227157,0.00678921,86.712,86.652,0.8672]
[1646030227359,17.3106,86.8,86.652,0.8672]
[1646030227360,2.74678921,86.729,86.652,0.8672]
[1646030227555,6.06265669,86.781,86.652,0.8672]
[1646030227758,115.3,86.759,86.652,0.8672]
[1646030227955,1.73139607,86.758,86.652,0.8672]
[1646030228158,115.3,86.755,86.652,0.8672]
[1646030228456,115.3,86.749,86.652,0.8672]
[1646030228659,115.3,86.739,86.652,0.8672]
[1646030228864,115.3,86.737,86.652,0.8672]
[1646030229070,115.3,86.719,86.652,0.8672]
[1646030229266,4.614,86.715,86.652,0.8672]
[1646030229465,116.71620659,86.714,86.652,0.8672]
[1646030229667,13.91,86.7,86.652,0.8672]
[1646030229867,64.53555689,86.699,86.652,0.8672]
[1646030230069,1.50416337,86.698,86.652,0.8672]
[1646030230266,6.0,86.697,86.652,0.8672]
[1646030231070,27.8556,86.736,86.652,0.8672]
[1646030231270,23.2416,86.736,86.652,0.8672]
[1646030232073,55.43885123,86.718,86.653,31.11442025]
[1646030232294,55.43885123,86.718,86.654,6.0]
[1646030235476,4.614,86.747,86.654,8.9135282]
[1646030235675,1.85206804,86.778,86.655,2.74678921]
[1646030235879,1.85206804,86.778,86.657,115.3]
[1646030236076,1.85206804,86.778,86.66,13.91]
[1646030236278,1.85206804,86.778,86.661,8.72042219]
[1646030236477,1.85206804,86.778,86.663,2.30061871]
[1646030236478,115.3,86.776,86.663,2.30061871]
[1646030236778,1.74129616,86.775,86.664,6.0]
[1646030236978,6.0,86.774,86.664,6.0]
[1646030237580,115.3,86.773,86.664,6.0]
[1646030237781,115.3,86.771,86.664,6.0]
[1646030237979,115.3,86.769,86.664,6.0]
[1646030238180,7.76992574,86.77,86.664,6.0]
[1646030238181,1.40938063,86.766,86.664,6.0]
[1646030238384,6.0,86.77,86.664,6.0]
[1646030238584,115.3,86.769,86.664,6.0]
[1646030238781,1.77085816,86.766,86.664,6.0]
[1646030238982,121.3,86.765,86.664,6.0]
[1646030239183,4.614,86.776,86.662,49.5381]
[1646030239184,115.3,86.763,86.662,49.5381]
[1646030239389,115.3,86.757,86.634,2.4817158]
[1646030239582,1.65358844,86.748,86.634,2.37238464]
[1646030239801,115.3,86.739,86.634,2.88257315]
[1646030240002,174.03127986,86.737,86.654,6.0]
[1646030240203,115.3,86.735,86.654,6.0]
[1646030240401,7.3543981,86.734,86.654,6.0]
[1646030240600,7.3543981,86.734,86.619,2.67020128]
[1646030241202,13.91,86.73,86.619,2.67020128]
[1646030241402,115.3,86.728,86.624,2.74678921]
[1646030241603,115.3,86.726,86.625,6.0]
[1646030241801,1.54613742,86.723,86.625,6.0]
[1646030242002,13.91,86.72,86.613,6.0]
[1646030242204,13.91,86.72,86.612,45.993]
[1646030242205,7.35592333,86.719,86.612,45.993]
[1646030242403,54.53461511,86.718,86.617,27.67782151]
[1646030242604,12.09824062,86.717,86.582,2.738426]
[1646030242803,12.09824062,86.717,86.583,2.49194391]
[1646030242804,2.00631028,86.716,86.583,2.49194391]
[1646030243103,6.0,86.715,86.583,2.49194391]
[1646030243304,7.82472109,86.715,86.583,2.49194391]
[1646030243505,7.82472109,86.715,86.633,26.1714585]
[1646030243707,1.70811538,86.713,86.633,26.1714585]
[1646030243904,1.57928998,86.709,86.633,26.1714585]
[1646030244105,6.0,86.708,86.633,26.1714585]
[1646030245105,115.3,86.707,86.633,26.1714585]
[1646030245306,6.0,86.708,86.633,26.1714585]
[1646030245505,6.0,86.708,86.65,6.38932443]
[1646030245707,0.57939878,86.716,86.65,6.38932443]
[1646030248414,0.57939878,86.716,86.651,6.0]
[1646030249825,0.57939878,86.716,86.653,2.74678921]
[1646030250016,0.57939878,86.716,86.654,6.0]
[1646030250515,0.57939878,86.716,86.654,28.8973]
[1646030250716,0.57939878,86.716,86.655,5.82846721]
[1646030250916,0.57939878,86.716,86.656,6.0]
[1646030251117,0.57939878,86.716,86.656,8.74678921]
[1646030251513,0.57939878,86.716,86.657,2.74678921]
[1646030251717,0.57939878,86.716,86.658,121.3]
[1646030252115,0.57939878,86.716,86.659,30.09017666]
[1646030252317,0.57939878,86.716,86.66,8.70220026]
[1646030252515,0.57939878,86.716,86.66,11.44898947]
[1646030252717,0.57939878,86.716,86.661,2.74678921]
[1646030252920,0.57939878,86.716,86.662,6.0]
[1646030253319,1.5628852,86.754,86.665,115.3]
[1646030253520,1.5628852,86.767,86.671,115.3]
[1646030253721,1.5628852,86.772,86.673,115.3]
[1646030253923,22.555,86.79,86.675,115.3]
[1646030253924,1.5628852,86.776,86.675,115.3]
[1646030254120,1.5628852,86.78,86.677,115.3]
[1646030254325,1.5628852,86.784,86.691,115.3]
[1646030254520,1.5628852,86.799,86.695,115.3]
[1646030254719,1.5628852,86.803,86.698,2.56073644]
[1646030254920,1.5628852,86.808,86.711,115.3]
[1646030255121,1.5628852,86.808,86.714,2.79676616]
[1646030255320,1.5628852,86.81,86.716,115.3]
[1646030255520,6.0,86.809,86.72,129.21]
[1646030255722,6.0,86.81,86.722,115.3]
[1646030255920,6.0,86.81,86.725,2.29214201]
[1646030256121,6.0,86.81,86.727,115.3]
[1646030256324,6.0,86.81,86.728,8.28816489]
[1646030256727,6.0,86.81,86.728,6.0]
[1646030256923,6.0,86.81,86.722,6.0]
[1646030258024,6.0,86.81,86.724,3.04291742]
[1646030258223,6.0,86.81,86.727,3.00272389]
[1646030258424,58.31241677,86.811,86.728,6.0]
[1646030258724,23.1448,86.832,86.73,2.47915835]
[1646030258926,23.1448,86.832,86.732,115.3]
[1646030259124,23.1448,86.832,86.734,115.3]
[1646030259325,23.1448,86.832,86.737,2.75150952]
[1646030259525,23.1448,86.832,86.738,6.0]
[1646030259724,56.759964,86.831,86.739,6.38932443]
[1646030259925,56.759964,86.831,86.74,6.0]
[1646030260225,6.0,86.83,86.74,6.0]
[1646030260426,6.0,86.83,86.74,8.70933409]
[1646030260725,6.0,86.83,86.74,8.89787572]
[1646030260929,6.0,86.83,86.74,6.0]
[1646030261227,1.51345427,86.828,86.74,6.0]
[1646030261429,1.66434208,86.825,86.74,6.0]
[1646030261626,115.3,86.823,86.739,6.38932443]
[1646030261825,115.3,86.821,86.739,6.38932443]
[1646030262027,7.65426115,86.82,86.739,6.38932443]
[1646030262229,1.65426115,86.82,86.739,6.38932443]
[1646030262426,6.0,86.819,86.739,6.38932443]
[1646030263228,115.3,86.818,86.731,47.8076]
[1646030263428,115.3,86.809,86.702,48.92]
[1646030263627,7.5726103,86.808,86.702,48.92]
[1646030263827,7.5726103,86.808,86.703,8.94576095]
[1646030264030,6.42252741,86.807,86.702,48.92]
[1646030264230,115.3,86.804,86.703,23.26377368]
[1646030264429,115.3,86.799,86.703,23.26377368]
[1646030264629,1.39913403,86.796,86.703,23.26377368]
[1646030264928,1.7785741,86.793,86.703,23.26377368]
[1646030265133,115.3,86.789,86.66,13.91]
[1646030265331,115.3,86.785,86.679,2.55912682]
[1646030265532,112.6,86.786,86.634,2.8992147]
[1646030265533,1.74197284,86.768,86.634,2.8992147]
[1646030265730,13.91,86.76,86.633,48.2687]
[1646030265930,13.91,86.75,86.635,3.05297059]
[1646030266135,66.77608226,86.749,86.655,31.99251176]
[1646030266331,1.71114359,86.748,86.655,31.99251176]
[1646030266537,6.0,86.747,86.655,31.99251176]
[1646030266832,115.3,86.746,86.655,31.99251176]
[1646030267032,1.50391387,86.743,86.655,31.99251176]
[1646030267232,1.49917248,86.74,86.635,3.05297059]
[1646030267432,115.3,86.738,86.635,3.05297059]
[1646030267634,115.3,86.736,86.635,3.05297059]
[1646030267832,122.74074384,86.735,86.635,3.05297059]
[1646030268033,1.394931,86.734,86.635,3.05297059]
[1646030268333,60.74427159,86.733,86.655,32.19999626]
[1646030268533,1.63453672,86.732,86.655,32.19999626]
[1646030268732,6.0,86.731,86.655,32.19999626]
[1646030269332,6.0,86.73,86.655,32.19999626]
[1646030269533,6.0,86.732,86.655,32.19999626]
[1646030269733,115.3,86.731,86.655,32.19999626]
[1646030269933,7.87174294,86.73,86.655,32.19999626]
[1646030270339,6.0,86.73,86.655,32.19999626]
[1646030270533,6.0,86.732,86.655,32.19999626]
[1646030270735,1.45999347,86.732,86.655,32.19999626]
[1646030270935,1.45999347,86.732,86.633,48.2687]
[1646030271134,116.88823677,86.729,86.633,48.2687]
[1646030271335,7.79337546,86.728,86.633,48.2687]
[1646030271536,1.53628078,86.726,86.633,48.2687]
[1646030271739,6.0,86.725,86.633,48.2687]
[1646030271937,13.91,86.72,86.639,27.73988683]
[1646030272138,47.99408127,86.718,86.653,4.81149732]
[1646030272342,6.0,86.717,86.653,4.81149732]
[1646030272539,47.99408127,86.718,86.653,4.81149732]
[1646030272737,47.99408127,86.718,86.633,48.2687]
[1646030272938,47.99408127,86.718,86.634,6.0]
[1646030273340,6.0,86.717,86.634,6.0]
[1646030273561,47.99408127,86.718,86.634,6.0]
[1646030273738,115.3,86.717,86.633,50.65617896]
[1646030273937,1.76571972,86.716,86.633,48.2687]
[1646030274137,1.47673857,86.713,86.621,24.5115]
[1646030274342,115.3,86.709,86.621,24.5115]
[1646030274540,1.8356626,86.706,86.621,24.5115]
[1646030274741,45.55297203,86.703,86.637,23.24087761]
[1646030274940,7.52766394,86.702,86.621,24.5115]
[1646030275940,7.52766394,86.702,86.636,29.36178751]
[1646030276845,7.52766394,86.702,86.621,24.5115]
[1646030277043,43.72642527,86.703,86.621,24.5115]
[1646030277242,43.72642527,86.703,86.622,3.10686495]
[1646030277443,43.72642527,86.703,86.623,6.0]
[1646030277841,43.72642527,86.703,86.653,29.89955653]
[1646030279645,36.8638,86.73,86.653,29.89955653]
[1646030279944,6.0,86.729,86.654,2.47519665]
[1646030280545,59.91573793,86.728,86.654,2.47519665]
[1646030281365,59.91573793,86.728,86.655,6.0]
[1646030281563,59.91573793,86.728,86.654,2.47519665]
[1646030281763,115.3,86.726,86.653,29.89955653]
[1646030281966,121.3,86.725,86.653,29.89955653]
[1646030282167,6.0,86.725,86.653,29.89955653]
[1646030282363,6.0,86.726,86.653,29.89955653]
[1646030282764,115.3,86.725,86.629,24.397]
[1646030282965,1.57955091,86.718,86.629,24.397]
[1646030283165,115.3,86.716,86.629,24.397]
[1646030283365,1.70125432,86.713,86.629,24.397]
[1646030283665,1.37860543,86.71,86.629,24.397]
[1646030283865,1.47038334,86.708,86.639,32.04163772]
[1646030284064,1.52402968,86.705,86.639,32.04163772]
[1646030284264,6.0,86.704,86.639,32.04163772]
[1646030284468,6.0,86.704,86.601,2.65549661]
[1646030284469,115.3,86.703,86.601,2.65549661]
[1646030284667,115.3,86.699,86.596,46.8298]
[1646030284865,115.3,86.697,86.597,2.83186634]
[1646030285067,1.83179962,86.694,86.597,2.83186634]
[1646030285265,1.80131224,86.691,86.597,2.83186634]
[1646030285467,164.41705693,86.689,86.62,29.02663587]
[1646030285667,115.3,86.687,86.62,29.02663587]
[1646030285867,115.3,86.685,86.597,2.83186634]
[1646030286167,115.3,86.681,86.596,46.8298]
[1646030286367,1.75753514,86.678,86.596,46.8298]
[1646030286568,1.35201419,86.675,86.596,46.8298]
[1646030286767,1.77848894,86.672,86.596,46.8298]
[1646030286971,1.54936309,86.669,86.597,27.09845451]
[1646030287170,1.61348912,86.666,86.597,27.09845451]
[1646030287370,1.69374807,86.663,86.595,4.614]
[1646030287569,1.80117954,86.66,86.595,4.614]
[1646030287769,6.0,86.659,86.595,4.614]
[1646030288369,6.0,86.668,86.596,29.36433229]
[1646030288579,6.0,86.671,86.596,29.36433229]
[1646030289579,13.91,86.69,86.597,8.38558416]
[1646030289775,13.91,86.7,86.597,8.38558416]
[1646030289977,6.0,86.699,86.598,115.3]
[1646030290177,6.0,86.699,86.6,115.3]
[1646030290376,115.3,86.725,86.602,115.3]
[1646030290579,1.61690515,86.729,86.605,2.91706564]